lending/lending_fUSD_20250516
["ID","MTS","AMOUNT","RATE_DAILY","PERIOD"]
[361286816,1747423846938,-400.0,0.00016438,2]
[361286817,1747423846947,-1396.3,0.00016438,2]
[361286818,1747423846956,-3382.94,0.00016438,2]
[361286819,1747423846966,-14260.37,0.00016438,2]
[361286820,1747423846975,-982.54,0.00016438,2]
[361286821,1747423847069,-151.0,0.00016438,2]
[361286822,1747423847078,-215.23070434,0.00016438,2]
[361286823,1747423847087,-151.0,0.00016438,2]
[361286824,1747423847096,-151.0,0.00016438,2]
[361286825,1747423847105,-151.0,0.00016438,2]
[361286826,1747423847114,-5534.63,0.00016438,2]
[361286827,1747423847123,-151.0,0.00016438,2]
[361286828,1747423847132,-1217.36,0.00016438,2]
[361286829,1747423847141,-443.3992935,0.00016438,2]
[361286830,1747423847152,-400.0,0.00016438,2]
[361286831,1747423847162,-400.0,0.00016438,2]
[361286832,1747423847171,-400.0,0.00016438,2]
[361286833,1747423847180,-509.3,0.00016438,2]
[361286834,1747423847190,-400.0,0.00016438,2]
[361286835,1747423847199,-400.0,0.00016438,2]
[361286836,1747423847208,-400.0,0.00016438,2]
[361286837,1747423847218,-470.39,0.00016438,2]
[361286838,1747423847227,-2784.45,0.00016438,2]
[361286839,1747423847236,-747.16,0.00016438,2]
[361286840,1747423847245,-807.38,0.00016438,2]
[361286841,1747423847255,-288.40077605,0.00016438,2]
[361286842,1747423847264,-400.0,0.00016438,2]
[361286843,1747423847273,-1296.1,0.00016438,2]
[361286844,1747423847282,-501.45,0.00016438,2]
[361286845,1747423847292,-16181.19,0.00016438,2]
[361286846,1747423847300,-2966.1,0.00016438,2]
[361286847,1747423847309,-8961.88,0.00016438,2]
[361286848,1747423847319,-400.0,0.00016438,2]
[361286849,1747423847328,-408.62,0.00016438,2]
[361286850,1747423847337,-400.0,0.00016438,2]
[361286851,1747423847347,-427.05,0.00016438,2]
[361286852,1747423847357,-2135.41,0.00016438,2]
[361286853,1747423847366,-400.0,0.00016438,2]
[361286854,1747423847375,-400.0,0.00016438,2]
[361286855,1747423847384,-400.0,0.00016438,2]
[361286856,1747423847393,-4202.66,0.00016438,2]
[361286857,1747423847402,-1725.7,0.00016438,2]
[361286858,1747423847411,-400.0,0.00016438,2]
[361286859,1747423847419,-441.19,0.00016438,2]
[361286860,1747423847429,-2291.36,0.00016438,2]
[361286861,1747423847438,-508.56,0.00016438,2]
[361286862,1747423847447,-547.11,0.00016438,2]
[361286863,1747423847457,-400.0,0.00016438,2]
[361286864,1747423847466,-906.89,0.00016438,2]
[361286865,1747423847475,-5693.21,0.00016438,2]
[361286866,1747423847484,-537.45196702,0.00016438,2]
[361286867,1747423847494,-654.53,0.00016438,2]
[361286868,1747423847504,-151.0,0.00016438,2]
[361286869,1747423847513,-1087.65,0.00016438,2]
[361286870,1747423847521,-151.0,0.00016438,2]
[361286871,1747423847532,-151.0,0.00016438,2]
[361286872,1747423847541,-580.87,0.00016438,2]
[361286873,1747423847550,-639.76,0.00016438,2]
[361286874,1747423847559,-1966.11,0.00016438,2]
[361286875,1747423847569,-400.0,0.00016438,2]
[361286876,1747423847578,-430.12,0.00016438,2]
[361286877,1747423847587,-1015.69,0.00016438,2]
[361286878,1747423847596,-2806.98,0.00016438,2]
[361286879,1747423847606,-509.13115329,0.00016438,2]
[361286880,1747423847615,-2582.19,0.00016438,2]
[361286881,1747423847624,-1338.55,0.00016438,2]
[361286882,1747423847634,-500.0,0.00016438,2]
[361286883,1747423847643,-500.0,0.00016438,2]
[361286884,1747423847653,-1263.57,0.00016438,2]
[361286885,1747423847663,-500.0,0.00016438,2]
[361286886,1747423847671,-500.0,0.00016438,2]
[361286887,1747423847680,-500.0,0.00016438,2]
[361286888,1747423847690,-500.0,0.00016438,2]
[361286889,1747423847698,-400.0,0.00016438,2]
[361286890,1747423847707,-400.0,0.00016438,2]
[361286891,1747423847716,-400.0,0.00016438,2]
[361286892,1747423847725,-2003.02,0.00016438,2]
[361286893,1747423847734,-2038.38,0.00016438,2]
[361286894,1747423847743,-610.13,0.00016438,2]
[361286895,1747423847755,-899.81,0.00016438,2]
[361286896,1747423847764,-407.79,0.00016438,2]
[361286897,1747423847773,-596.15,0.00016438,2]
[361286898,1747423847782,-7299.65,0.00016438,2]
[361286899,1747423847793,-909.88,0.00016438,2]
[361286900,1747423847802,-10594.97,0.00016438,2]
[361286901,1747423847811,-11725.25,0.00016438,2]
[361286902,1747423847821,-400.0,0.00016438,2]
[361286903,1747423847830,-404.47642541,0.00016438,2]
[361286904,1747423847839,-367.30113679,0.00016438,2]
[361286905,1747423847848,-500.0,0.00016438,2]
[361286906,1747423847859,-400.0,0.00016438,2]
[361286907,1747423847869,-88446.81364103,0.00016438,2]
[361286908,1747423847960,-4936.0794304,0.00016438,2]
[361286909,1747423847998,-3701.48983757,0.00016438,2]
[361286910,1747423848437,-254.46791137,0.00016438,2]
[361286911,1747423848449,-51765.15917963,0.00016438,2]
[361286912,1747423848459,-1141.92,0.00016438,2]
[361286913,1747423848468,-400.0,0.00016438,2]
[361286914,1747423848478,-400.0,0.00016438,2]
[361286915,1747423848488,-542.62,0.00016438,2]
[361286916,1747423848497,-753.57,0.00016438,2]
[361286917,1747423848507,-502.64952078,0.00016438,2]
[361286918,1747423848516,-540.77,0.00016438,2]
[361286919,1747423848526,-921.28,0.00016438,2]
[361286920,1747423848535,-1979.04,0.00016438,2]
[361286921,1747423848544,-472.59509545,0.00016438,2]
[361286922,1747423848553,-726.48,0.00016438,2]
[361286923,1747423848562,-400.0,0.00016438,2]
[361286924,1747423848572,-400.0,0.00016438,2]
[361286925,1747423848581,-525.08,0.00016438,2]
[361286926,1747423848592,-1064.68,0.00016438,2]
[361286927,1747423848601,-955.53,0.00016438,2]
[361286928,1747423848610,-1064.68,0.00016438,2]
[361286929,1747423848620,-1078.06,0.00016438,2]
[361286930,1747423848629,-1064.68,0.00016438,2]
[361286931,1747423848639,-1064.68,0.00016438,2]
[361286932,1747423848649,-1064.68,0.00016438,2]
[361286933,1747423848658,-400.0,0.00016438,2]
[361286934,1747423848668,-558.75,0.00016438,2]
[361286935,1747423848677,-717.66,0.00016438,2]
[361286936,1747423848687,-400.0,0.00016438,2]
[361286937,1747423848697,-1318.62,0.00016438,2]
[361286938,1747423848706,-532.65,0.00016438,2]
[361286939,1747423848715,-11834.99,0.00016438,2]
[361286940,1747423848725,-1422.74,0.00016438,2]
[361286941,1747423848734,-1332.2,0.00016438,2]
[361286942,1747423848745,-522.04,0.00016438,2]
[361286943,1747423848757,-400.0,0.00016438,2]
[361286944,1747423848766,-400.0,0.00016438,2]
[361286945,1747423848777,-400.0,0.00016438,2]
[361286946,1747423848786,-1142.02,0.00016438,2]
[361286947,1747423848797,-418.93,0.00016438,2]
[361286948,1747423848806,-400.0,0.00016438,2]
[361286949,1747423848815,-469.03,0.00016438,2]
[361286950,1747423848826,-1378.18,0.00016438,2]
[361286951,1747423848836,-1559.04,0.00016438,2]
[361286952,1747423848846,-1483.56,0.00016438,2]
[361286953,1747423848857,-974.2,0.00016438,2]
[361286954,1747423848867,-365.05165633,0.00016438,2]
[361286955,1747423848876,-1937.13,0.00016438,2]
[361286956,1747423848886,-400.0,0.00016438,2]
[361286957,1747423848896,-400.0,0.00016438,2]
[361286958,1747423848906,-846.04,0.00016438,2]
[361286959,1747423848916,-400.0,0.00016438,2]
[361286960,1747423848925,-4239.64,0.00016438,2]
[361286961,1747423848934,-162.55411999,0.00016438,2]
[361286962,1747423848944,-1839.38,0.00016438,2]
[361286963,1747423848954,-534.63072462,0.00016438,2]
[361286964,1747423848963,-862.91,0.00016438,2]
[361286965,1747423848973,-400.0,0.00016438,2]
[361286966,1747423848985,-400.0,0.00016438,2]
[361286967,1747423848995,-1353.21,0.00016438,2]
[361286968,1747423849006,-7283.66,0.00016438,2]
[361286969,1747423849016,-400.0,0.00016438,2]
[361286970,1747423849025,-1011.12,0.00016438,2]
[361286971,1747423849036,-403.92000085,0.00016438,2]
[361286972,1747423849046,-228.66652826,0.00016438,2]
[361286973,1747423849056,-400.0,0.00016438,2]
[361286974,1747423849066,-400.0,0.00016438,2]
[361286975,1747423849076,-18106.64,0.00016438,2]
[361286976,1747423849086,-21560.84,0.00016438,2]
[361286977,1747423849096,-400.0,0.00016438,2]
[361286978,1747423849109,-400.0,0.00016438,2]
[361286979,1747423849119,-4042.94,0.00016438,2]
[361286980,1747423849128,-400.0,0.00016438,2]
[361286981,1747423849138,-321.096279,0.00016438,2]
[361286982,1747423849148,-321.096279,0.00016438,2]
[361286983,1747423849158,-400.0,0.00016438,2]
[361286984,1747423849169,-321.096279,0.00016438,2]
[361286985,1747423849179,-321.096279,0.00016438,2]
[361286986,1747423849190,-400.0,0.00016438,2]
[361286987,1747423849200,-1848.37,0.00016438,2]
[361286988,1747423849209,-514.33388672,0.00016438,2]
[361286989,1747423849220,-400.0,0.00016438,2]
[361286990,1747423849230,-400.0,0.00016438,2]
[361286991,1747423849240,-2835.64,0.00016438,2]
[361286992,1747423849251,-321.096279,0.00016438,2]
[361286993,1747423849260,-400.0,0.00016438,2]
[361286994,1747423849271,-321.096279,0.00016438,2]
[361286995,1747423849281,-6245.27,0.00016438,2]
[361286996,1747423849291,-321.096279,0.00016438,2]
[361286997,1747423849301,-321.096279,0.00016438,2]
[361286998,1747423849311,-420.68,0.00016438,2]
[361286999,1747423849321,-897.81,0.00016438,2]
[361287000,1747423849331,-400.0,0.00016438,2]
[361287001,1747423849341,-400.0,0.00016438,2]
[361287002,1747423849351,-637.33,0.00016438,2]
[361287003,1747423849363,-1484.83,0.00016438,2]
[361287004,1747423849373,-400.0,0.00016438,2]
[361287005,1747423849383,-504.60693247,0.00016438,2]
[361287006,1747423849392,-400.0,0.00016438,2]
[361287007,1747423849402,-400.0,0.00016438,2]
[361287008,1747423849413,-400.0,0.00016438,2]
[361287009,1747423849422,-151.0,0.00016438,2]
[361287010,1747423849432,-401.59953192,0.00016438,2]
[361287011,1747423849441,-714.846678,0.00016438,2]
[361287012,1747423849451,-400.0,0.00016438,2]
[361287013,1747423849460,-851.47,0.00016438,2]
[361287014,1747423849469,-714.846678,0.00016438,2]
[361287015,1747423849479,-400.0,0.00016438,2]
[361287016,1747423849488,-714.846678,0.00016438,2]
[361287017,1747423849497,-151.0,0.00016438,2]
[361287018,1747423849506,-714.846678,0.00016438,2]
[361287019,1747423849517,-400.0,0.00016438,2]
[361287020,1747423849526,-517.01655041,0.00016438,2]
[361287021,1747423849535,-400.0,0.00016438,2]
[361287022,1747423849544,-2425.1,0.00016438,2]
[361287023,1747423849554,-4594.01,0.00016438,2]
[361287024,1747423849563,-400.0,0.00016438,2]
[361287025,1747423849572,-390.67932856,0.00016438,2]
[361287026,1747423849586,-3257.91067144,0.00016438,2]
[361287027,1747423849595,-400.0,0.00016438,2]
[361287028,1747423849607,-400.0,0.00016438,2]
[361287029,1747423849616,-400.0,0.00016438,2]
[361287030,1747423849626,-82.58006129,0.00016438,2]
[361287031,1747423849647,-328.86328145,0.00016438,2]
[361287032,1747423849659,-303.40333526,0.00016438,2]
[361287033,1747423849669,-146.59666474,0.00016438,2]
[361287034,1747423851000,-317.8546284,0.00016418,2]
[361287035,1747423851019,-353.92,0.00016418,2]
[361287036,1747423851069,-166.2253716,0.00016418,2]
[361287037,1747423851079,-568.25001326,0.00016438,2]
[361287038,1747423851090,-279.57729124,0.00016438,2]
[361287039,1747423851141,-120.42270876,0.00016438,2]
[361287040,1747423851151,-714.846678,0.00016438,2]
[361287041,1747423851160,-714.846678,0.00016438,2]
[361287042,1747423851170,-151.0,0.00016438,2]
[361287043,1747423851180,-263.58375394,0.00016438,2]
[361287044,1747423851190,-400.0,0.00016438,2]
[361287045,1747423851200,-400.0,0.00016438,2]
[361287046,1747423851210,-400.86,0.00016438,2]
[361287047,1747423851220,-400.0,0.00016438,2]
[361287048,1747423851231,-400.0,0.00016438,2]
[361287049,1747423851241,-400.0,0.00016438,2]
[361287050,1747423851251,-464.72996461,0.00016438,2]
[361287051,1747423851261,-221.0,0.00016438,2]
[361287052,1747423851271,-150.0,0.00016446,2]
[361287053,1747423851281,-150.0,0.00016465,10]
[361287054,1747423851291,-470.09874022,0.00016473,2]
[361287055,1747423851301,-502.54862324,0.00016473,2]
[361287056,1747423851311,-500.0,0.00016473,2]
[361287057,1747423851320,-500.0,0.00016473,2]
[361287058,1747423851330,-500.0,0.00016473,2]
[361287059,1747423851340,-500.0,0.00016473,2]
[361287060,1747423851350,-264.9385434,0.00016473,2]
[361287061,1747423851360,-500.0,0.00016473,2]
[361287062,1747423851370,-500.0,0.00016473,2]
[361287063,1747423851379,-500.0,0.00016473,2]
[361287064,1747423851389,-154.72908028,0.00016473,2]
[361287065,1747423851398,-500.0,0.00016473,2]
[361287066,1747423851407,-500.0,0.00016473,2]
[361287067,1747423851417,-500.0,0.00016473,2]
[361287068,1747423851427,-500.0,0.00016473,2]
[361287069,1747423851436,-500.61020259,0.00016473,2]
[361287070,1747423851446,-500.0,0.00016473,2]
[361287071,1747423851456,-500.0,0.00016473,2]
[361287072,1747423851465,-500.0,0.00016473,2]
[361287073,1747423851474,-312.61573331,0.00016473,2]
[361287074,1747423851484,-150.0,0.00016493,10]
[361287075,1747423851494,-587.00628,0.00016498,2]
[361287076,1747423851503,-246.75,0.00016499,2]
[361287077,1747423851512,-500.0,0.00016499,2]
[361287078,1747423851522,-500.0,0.00016499,2]
[361287079,1747423851532,-1064.68,0.00016499,2]
[361287080,1747423851542,-1064.68,0.00016499,2]
[361287081,1747423851552,-1000.0,0.000165,2]
[361287082,1747423851562,-338.56413272,0.000165,2]
[361287083,1747423851579,-309971.84053135,0.000165,2]
[361287084,1747423851591,-34953.99042915,0.000165,2]
[361287085,1747423851603,-4825.39364916,0.000165,2]
[361287086,1747423851616,-335.9303856,0.000165,2]
[361287087,1747423852515,-400.0,0.00016438,2]
[361287088,1747423852525,-400.0,0.00016438,2]
[361287089,1747423852534,-324.73490965,0.00016438,2]
[361287090,1747423852660,-114.94338235,0.00016438,2]
[361287091,1747423852670,-450.0,0.00016438,2]
[361287092,1747423852680,-223.05661965,0.00016438,2]
[361287093,1747423956889,300.0,0.00024658,30]
[361287106,1747424279224,450.0,0.0001,2]
[361287107,1747424335541,-553.01,0.00013699,2]
[361287110,1747424523032,158.39,0.00021945,30]
[361287112,1747424847795,508.49,0.00013456,2]
[361287116,1747425032553,-4000.0,0.00015363,2]
[361287117,1747425032563,-200.0,0.00015391,2]
[361287118,1747425032572,-200.8778,0.00015448,2]
[361287119,1747425032768,-42.0322,0.00015448,2]
[361287120,1747425032778,-212.73,0.00015463,2]
[361287121,1747425032787,-500.0,0.00015497,2]
[361287122,1747425032796,-150.0,0.00015539,7]
[361287123,1747425032806,-595.2378,0.00015591,2]
[361287126,1747425038306,-404.7622,0.00015591,2]
[361287127,1747425038316,-203.4,0.00015692,2]
[361287128,1747425038325,-180.3378,0.0001572,2]
[361287132,1747425040454,-328.1522,0.0001572,2]
[361287133,1747425040464,-1200.0,0.00015899,2]
[361287134,1747425040473,-400.0,0.000159,5]
[361287135,1747425040482,-2438.43759057,0.000159,2]
[361287136,1747425040492,-300.0,0.0001601,2]
[361287137,1747425040501,-200.0,0.00016011,2]
[361287138,1747425040510,-864.05076374,0.00016258,2]
[361287139,1747425040520,-207.4,0.0001628,2]
[361287140,1747425040529,-293.89,0.00016288,2]
[361287141,1747425040539,-150.99,0.00016289,2]
[361287142,1747425040548,-299.99,0.00016289,4]
[361287143,1747425040557,-2438.43759057,0.00016314,2]
[361287144,1747425040567,-12276.59412441,0.00016324,2]
[361287145,1747425040576,-151.0,0.00016324,2]
[361287146,1747425040585,-599.60298507,0.00016324,2]
[361287147,1747425040594,-668.65185757,0.00016324,2]
[361287148,1747425040603,-1000.0,0.00016329,2]
[361287149,1747425040612,-1857.0,0.0001633,2]
[361287150,1747425040621,-550.0,0.00016333,2]
[361287151,1747425040631,-45582.5307,0.00016334,2]
[361287152,1747425040640,-176.03075843,0.00016338,2]
[361287153,1747425040649,-1267.234,0.00016338,2]
[361287154,1747425040658,-167.65508558,0.00016338,2]
[361287155,1747425040667,-14300.28818802,0.00016338,2]
[361287156,1747425040677,-406.64281114,0.00016338,2]
[361287157,1747425040686,-11231.14271883,0.00016338,2]
[361287158,1747425040696,-1306.0,0.00016397,2]
[361287159,1747425040705,-932.0,0.00016397,2]
[361287160,1747425040716,-799.0,0.00016397,2]
[361287161,1747425040726,-629.0,0.00016397,2]
[361287162,1747425040736,-1253.0,0.00016397,2]
[361287163,1747425040746,-584.0,0.00016397,2]
[361287164,1747425040756,-1458.0,0.00016397,2]
[361287165,1747425040766,-553.0,0.00016397,2]
[361287166,1747425040776,-919.0,0.00016397,2]
[361287167,1747425040786,-154.0,0.00016397,2]
[361287168,1747425040795,-4037.0,0.00016397,2]
[361287169,1747425040805,-838.0,0.00016397,2]
[361287170,1747425040814,-450.0,0.00016397,2]
[361287171,1747425040823,-940.2389787,0.00016417,2]
[361287172,1747425040833,-165.1,0.00016428,2]
[361287173,1747425040848,-229.90359762,0.00016428,2]
[361287174,1747425040858,-11231.14271877,0.00016429,2]
[361287175,1747425040868,-242.5911178,0.00016437,2]
[361287176,1747425040877,-177.95130915,0.00016437,2]
[361287177,1747425040887,-226.18,0.00016437,2]
[361287178,1747425040896,-402.01722187,0.00016438,2]
[361287179,1747425040906,-400.0,0.00016438,2]
[361287180,1747425040915,-400.0,0.00016438,2]
[361287181,1747425040925,-400.0,0.00016438,2]
[361287182,1747425040935,-400.0,0.00016438,2]
[361287183,1747425040944,-488.82,0.00016438,2]
[361287184,1747425040953,-824.55,0.00016438,2]
[361287185,1747425040963,-400.0,0.00016438,2]
[361287186,1747425040973,-400.0,0.00016438,2]
[361287187,1747425040982,-400.0,0.00016438,2]
[361287189,1747425040992,-400.0,0.00016438,2]
[361287190,1747425041001,-400.0,0.00016438,2]
[361287191,1747425041011,-724.34,0.00016438,2]
[361287192,1747425041020,-529.27961916,0.00016438,2]
[361287193,1747425041030,-400.0,0.00016438,2]
[361287194,1747425041039,-400.0,0.00016438,2]
[361287195,1747425041048,-400.0,0.00016438,2]
[361287196,1747425041058,-400.0,0.00016438,2]
[361287198,1747425041067,-400.0,0.00016438,2]
[361287199,1747425041076,-400.0,0.00016438,2]
[361287200,1747425041087,-400.0,0.00016438,2]
[361287201,1747425041096,-400.0,0.00016438,2]
[361287202,1747425041106,-500.0,0.00016438,2]
[361287203,1747425041115,-452.72,0.00016438,2]
[361287204,1747425041124,-400.0,0.00016438,2]
[361287205,1747425041134,-400.0,0.00016438,2]
[361287206,1747425041143,-400.0,0.00016438,2]
[361287207,1747425041152,-400.0,0.00016438,2]
[361287208,1747425041162,-508.51756232,0.00016438,2]
[361287209,1747425041174,-400.0,0.00016438,2]
[361287210,1747425041183,-400.0,0.00016438,2]
[361287211,1747425041192,-400.0,0.00016438,2]
[361287212,1747425041201,-524.21,0.00016438,2]
[361287213,1747425041210,-400.0,0.00016438,2]
[361287214,1747425041219,-400.0,0.00016438,2]
[361287215,1747425041229,-1000.0,0.00016438,2]
[361287216,1747425041238,-400.0,0.00016438,2]
[361287217,1747425041248,-400.0,0.00016438,2]
[361287218,1747425041257,-400.0,0.00016438,2]
[361287219,1747425041267,-469.85577467,0.00016438,2]
[361287220,1747425041276,-400.0,0.00016438,2]
[361287221,1747425041285,-400.0,0.00016438,2]
[361287222,1747425041294,-608.44,0.00016438,2]
[361287223,1747425041303,-440.71157812,0.00016438,2]
[361287224,1747425041312,-400.0,0.00016438,2]
[361287225,1747425041321,-400.0,0.00016438,2]
[361287226,1747425041330,-400.0,0.00016438,2]
[361287227,1747425041341,-400.0,0.00016438,2]
[361287228,1747425041350,-579.97,0.00016438,2]
[361287229,1747425041359,-400.0,0.00016438,2]
[361287230,1747425041368,-400.0,0.00016438,2]
[361287231,1747425041378,-400.0,0.00016438,2]
[361287232,1747425041387,-285.66205294,0.00016438,2]
[361287233,1747425041396,-400.0,0.00016438,2]
[361287234,1747425041405,-656.41,0.00016438,2]
[361287235,1747425041415,-404.99853964,0.00016438,2]
[361287236,1747425041424,-400.0,0.00016438,2]
[361287237,1747425041434,-598.93,0.00016438,2]
[361287238,1747425041444,-423.85,0.00016438,2]
[361287239,1747425041453,-451.96484434,0.00016438,2]
[361287240,1747425041462,-400.0,0.00016438,2]
[361287241,1747425041472,-428.38756497,0.00016438,2]
[361287242,1747425041481,-400.0,0.00016438,2]
[361287243,1747425041491,-400.0,0.00016438,2]
[361287244,1747425041500,-400.0,0.00016438,2]
[361287245,1747425041509,-400.0,0.00016438,2]
[361287246,1747425041518,-563.91,0.00016438,2]
[361287247,1747425041528,-400.0,0.00016438,2]
[361287248,1747425041537,-400.0,0.00016438,2]
[361287249,1747425041546,-215.08159271,0.00016438,2]
[361287250,1747425041556,-400.0,0.00016438,2]
[361287251,1747425041566,-400.0,0.00016438,2]
[361287252,1747425041576,-400.0,0.00016438,2]
[361287253,1747425041585,-400.0,0.00016438,2]
[361287254,1747425041595,-546.57825489,0.00016438,2]
[361287255,1747425041604,-550.67,0.00016438,2]
[361287256,1747425041613,-400.0,0.00016438,2]
[361287257,1747425041623,-400.0,0.00016438,2]
[361287258,1747425041632,-400.0,0.00016438,2]
[361287259,1747425041642,-400.0,0.00016438,2]
[361287260,1747425041651,-400.0,0.00016438,2]
[361287261,1747425041661,-400.0,0.00016438,2]
[361287262,1747425041671,-465.27232933,0.00016438,2]
[361287263,1747425041680,-400.0,0.00016438,2]
[361287264,1747425041689,-400.0,0.00016438,2]
[361287265,1747425041785,-400.0,0.00016438,2]
[361287266,1747425041795,-400.0,0.00016438,2]
[361287267,1747425041804,-400.0,0.00016438,2]
[361287268,1747425041813,-602.34,0.00016438,2]
[361287269,1747425041822,-400.0,0.00016438,2]
[361287270,1747425041831,-503.50124388,0.00016438,2]
[361287271,1747425041840,-400.0,0.00016438,2]
[361287272,1747425041849,-400.0,0.00016438,2]
[361287273,1747425041858,-400.0,0.00016438,2]
[361287274,1747425041867,-244.57361184,0.00016438,2]
[361287275,1747425041876,-400.0,0.00016438,2]
[361287276,1747425041885,-400.0,0.00016438,2]
[361287277,1747425041894,-400.0,0.00016438,2]
[361287278,1747425041903,-400.0,0.00016438,2]
[361287279,1747425041912,-400.0,0.00016438,2]
[361287280,1747425041921,-400.0,0.00016438,2]
[361287281,1747425041931,-151.0,0.00016438,2]
[361287282,1747425041940,-400.0,0.00016438,2]
[361287283,1747425041949,-540.13,0.00016438,2]
[361287284,1747425041958,-545.92,0.00016438,2]
[361287285,1747425041968,-151.0,0.00016438,2]
[361287286,1747425041977,-400.0,0.00016438,2]
[361287287,1747425041986,-151.0,0.00016438,2]
[361287288,1747425041995,-400.0,0.00016438,2]
[361287289,1747425042004,-400.0,0.00016438,2]
[361287290,1747425042013,-400.0,0.00016438,2]
[361287291,1747425042022,-813.02,0.00016438,2]
[361287292,1747425042031,-400.0,0.00016438,2]
[361287293,1747425042040,-250.0,0.00016438,2]
[361287294,1747425042049,-400.0,0.00016438,2]
[361287295,1747425042058,-400.0,0.00016438,2]
[361287296,1747425042067,-400.0,0.00016438,2]
[361287297,1747425042076,-500.0,0.00016438,2]
[361287298,1747425042085,-784.4,0.00016438,2]
[361287299,1747425042095,-400.0,0.00016438,2]
[361287300,1747425042104,-674.52,0.00016438,2]
[361287301,1747425042112,-400.0,0.00016438,2]
[361287302,1747425042122,-400.0,0.00016438,2]
[361287303,1747425042131,-151.0,0.00016438,2]
[361287304,1747425042141,-396.49306851,0.00016438,2]
[361287305,1747425042151,-400.0,0.00016438,2]
[361287306,1747425042160,-480.39,0.00016438,2]
[361287307,1747425042173,-400.0,0.00016438,2]
[361287308,1747425042184,-400.0,0.00016438,2]
[361287309,1747425042193,-151.0,0.00016438,2]
[361287310,1747425042203,-333.42984629,0.00016438,2]
[361287311,1747425042211,-400.0,0.00016438,2]
[361287312,1747425042221,-400.0,0.00016438,2]
[361287313,1747425042230,-400.0,0.00016438,2]
[361287314,1747425042239,-329.60063237,0.00016438,2]
[361287315,1747425042250,-400.0,0.00016438,2]
[361287316,1747425042259,-859.85,0.00016438,2]
[361287317,1747425042267,-400.0,0.00016438,2]
[361287318,1747425042277,-400.0,0.00016438,2]
[361287319,1747425042286,-400.0,0.00016438,2]
[361287320,1747425042295,-400.0,0.00016438,2]
[361287321,1747425042304,-151.0,0.00016438,2]
[361287322,1747425042313,-400.0,0.00016438,2]
[361287323,1747425042322,-151.0,0.00016438,2]
[361287324,1747425042331,-540.29613471,0.00016438,2]
[361287325,1747425042341,-400.0,0.00016438,2]
[361287326,1747425042350,-253.036612,0.00016438,2]
[361287327,1747425042359,-400.0,0.00016438,2]
[361287328,1747425042368,-614.84,0.00016438,2]
[361287329,1747425042378,-400.0,0.00016438,2]
[361287330,1747425042387,-400.0,0.00016438,2]
[361287331,1747425042396,-151.0,0.00016438,2]
[361287332,1747425042405,-400.0,0.00016438,2]
[361287333,1747425042414,-404.4544139,0.00016438,2]
[361287334,1747425042423,-400.0,0.00016438,2]
[361287335,1747425042432,-400.0,0.00016438,2]
[361287336,1747425042441,-400.0,0.00016438,2]
[361287337,1747425042451,-400.0,0.00016438,2]
[361287338,1747425042460,-400.0,0.00016438,2]
[361287339,1747425042480,-400.0,0.00016438,2]
[361287340,1747425042490,-400.0,0.00016438,2]